bitfinex-derivatives/quotes_ETHF0:USTF0_20250919
["timestamp","ask_amount","ask_price","bid_price","bid_amount"]
[1758279918472,0.94799562,4526.5,4526.4,0.3096]
[1758279918678,0.7076,4526.4,4526.3,0.5214]
[1758279918878,0.94799562,4526.4,4526.3,0.5214]
[1758279919077,0.45057763,4526.4,4526.3,0.7187]
[1758279919269,0.74057763,4526.4,4526.3,0.7187]
[1758279919874,0.94797763,4526.4,4526.3,0.7187]
[1758279920475,0.45057763,4526.4,4526.3,0.7187]
[1758279921789,0.74057763,4526.4,4526.3,0.7187]
[1758279922089,0.24037763,4526.4,4526.3,0.7187]
[1758279922289,0.74057763,4526.4,4526.3,0.7187]
[1758279925088,0.94797763,4526.4,4526.3,0.7187]
[1758279929590,0.94797763,4526.4,4526.3,1.11616]
[1758279930892,0.94797763,4526.4,4526.3,0.60926]
[1758279931093,0.94797763,4526.4,4525.9,0.3975]
[1758279931298,0.94797763,4526.4,4525.8,0.3173]
[1758279931299,0.8353,4526.0,4525.8,0.3173]
[1758279931501,0.95516551,4525.9,4525.8,0.022]
[1758279931799,0.95516551,4525.9,4525.3,0.44195477]
[1758279931998,0.4142,4525.4,4525.3,0.64905477]
[1758279932204,0.7145,4525.4,4525.3,1.34190477]
[1758279932699,0.96410652,4525.4,4525.3,1.34190477]
[1758279933692,0.96405067,4525.4,4525.3,1.34190477]
[1758279934594,0.96405067,4525.4,4525.3,0.44195477]
[1758279935693,5.48542287,4525.4,4525.1,0.022]
[1758279935900,0.7145,4525.2,4525.1,0.022]
[1758279936193,0.8353,4524.5,4524.4,0.39762]
[1758279936392,0.78430041,4524.5,4524.3,0.39764]
[1758279936601,0.7145,4524.4,4524.3,0.39764]
[1758279937704,0.7145,4524.4,4524.3,1.10274]
[1758279940399,0.2083,4524.4,4524.3,1.10274]
[1758279940599,0.5086,4524.4,4524.3,1.10274]
[1758279941000,0.3003,4524.8,4524.7,0.3976]
[1758279941204,0.96344829,4524.8,4524.7,1.1027]
[1758279943101,0.2083,4524.2,4524.1,0.7051]
[1758279943400,0.5086,4524.2,4524.1,0.7051]
[1758279943602,0.5086,4524.2,4524.1,1.10275]
[1758279944300,0.7145,4524.2,4524.1,1.10275]
[1758279944493,0.7145,4524.2,4524.1,0.7051]
[1758279944695,0.7145,4524.2,4524.1,0.2071]
[1758279944893,0.7145,4523.9,4523.8,0.69298]
[1758279945096,0.7145,4523.9,4522.1,1.98916]
[1758279945097,0.96325615,4523.9,4523.5,0.3174]
[1758279945299,0.7145,4523.6,4523.5,0.2953]
[1758279945708,0.7145,4523.6,4523.5,0.5024]
[1758279946102,0.7145,4523.6,4523.5,0.8242]
[1758279946703,0.2083,4523.6,4523.5,0.8242]
[1758279947211,0.5086,4523.6,4523.5,0.8242]
[1758279947799,0.7145,4523.6,4523.5,0.8242]
[1758279948303,0.5086,4524.0,4523.9,1.10277]
[1758279948610,0.96294739,4524.0,4523.9,0.7051]
[1758279949906,0.24844739,4524.0,4523.9,0.7051]
[1758279950408,0.5086,4524.1,4524.0,0.7051]
[1758279950603,0.75696397,4524.1,4524.0,1.10276]
[1758279950799,0.45666397,4524.1,4524.0,1.22186]
[1758279951002,0.75696397,4524.1,4524.0,1.22186]
[1758279951810,0.96286397,4524.1,4524.0,1.10276]
[1758279952607,0.96286397,4524.1,4524.0,1.22186]
[1758279952813,0.5086,4524.5,4524.4,1.10273]
[1758279953109,0.45668801,4524.5,4524.4,1.10273]
[1758279953310,0.75698801,4524.5,4524.4,1.10273]
[1758279954010,1.08368801,4524.5,4524.4,0.7051]
[1758279954412,1.08368801,4524.5,4524.4,1.10273]
[1758279954912,0.96288801,4524.5,4524.4,1.10273]
[1758279955413,0.96288801,4524.5,4524.4,0.7051]
[1758279955614,1.08368801,4524.5,4524.1,0.2953]
[1758279955815,0.7145,4524.2,4524.1,0.69295]
[1758279956015,0.7145,4524.2,4524.1,0.90005]
[1758279956411,0.7145,4524.2,4524.1,1.10275]
[1758279957216,0.96259981,4524.2,4524.1,1.10275]
[1758279958314,0.24809981,4524.2,4524.1,1.10275]
[1758279958915,0.291,4524.6,4524.4,0.39762]
[1758279959119,0.74141216,4524.5,4524.4,1.10902]
[1758279960114,0.95261216,4524.5,4524.4,1.10902]
[1758279960412,0.291,4524.4,4524.2,0.39764]
[1758279960617,0.95261216,4524.3,4524.2,0.90095]
[1758279960813,0.95261216,4524.3,4524.2,1.10905]
[1758279961817,0.95291576,4524.3,4524.2,1.10905]
[1758279962030,0.95291576,4524.3,4524.2,0.90095]
[1758279962217,0.95291576,4524.3,4524.2,0.2117]
[1758279962518,0.7043,4524.2,4524.1,0.60935]
[1758279962919,0.7043,4524.2,4524.1,0.2117]
[1758279963223,1.44419318,4524.2,4524.1,0.60935]
[1758279963422,1.44419318,4524.2,4524.1,0.2117]
[1758279964121,1.44419318,4524.2,4524.1,0.60935]
[1758279964420,1.44419318,4524.2,4524.1,1.10905]
[1758279966418,1.44440759,4524.2,4524.1,1.10905]
[1758279968023,1.23320759,4524.2,4524.1,1.10905]
[1758279968224,0.74010759,4524.2,4524.1,1.10905]
[1758279968519,0.94220759,4524.2,4524.1,1.10905]
[1758279968719,1.23320759,4524.2,4524.1,1.10905]
[1758279968920,1.44440759,4524.2,4524.1,1.10905]
[1758279970121,0.94220759,4524.2,4524.1,1.10905]
[1758279970317,0.74010759,4524.2,4524.1,1.10905]
[1758279970823,0.71566443,4524.2,4524.1,1.10905]
[1758279973118,1.44456193,4524.2,4524.1,1.10905]
[1758279978833,0.94236193,4524.2,4524.1,1.10905]
[1758279979134,1.44456193,4524.2,4524.1,1.10905]
[1758279979527,0.74026193,4524.2,4524.1,1.10905]
[1758279980025,1.23336193,4524.2,4524.1,1.10905]
[1758279982326,1.44456193,4524.2,4524.1,1.10905]
[1758279982630,0.94236193,4524.2,4524.1,1.10905]
[1758279982833,1.23336193,4524.2,4524.1,1.10905]
[1758279983832,1.44456193,4524.2,4524.1,1.10905]
[1758279991642,1.44456193,4524.2,4524.1,0.90095]
[1758279995151,1.44456193,4524.2,4524.1,1.10865]
[1758279998456,0.3124,4524.1,4523.7,1.30673]
[1758279998653,0.411,4523.7,4523.6,0.5413]
[1758279998847,0.94596443,4523.7,4523.6,0.5413]
[1758279999047,0.94596443,4523.7,4523.6,0.5192]
[1758279999248,0.94596443,4523.7,4523.6,0.7269]
[1758279999543,0.94596443,4523.7,4523.6,1.1246]
[1758280000255,1.46363123,4523.7,4523.6,1.1246]
[1758280000956,1.49332132,4523.7,4523.6,0.9169]
[1758280002558,0.97565452,4523.7,4523.6,0.9169]
[1758280003558,0.97565452,4523.7,4523.6,1.1246]
[1758280005151,0.97565452,4523.7,4523.6,0.6044]
[1758280005555,0.97565452,4523.7,4523.6,0.9179]
[1758280005860,0.8499,4523.5,4523.4,0.39771]
[1758280006054,1.10215452,4523.5,4523.4,0.39771]
[1758280006562,1.30900423,4523.5,4523.3,0.71022]
[1758280006763,0.76385452,4523.4,4523.3,1.12462]
[1758280007557,0.97565452,4523.4,4523.3,1.12462]
[1758280009857,0.25225452,4523.4,4523.3,1.12462]
[1758280011058,0.76385452,4523.4,4523.3,1.12462]
[1758280012153,0.97565452,4523.4,4523.3,1.12462]
[1758280012352,0.7234,4523.4,4523.3,1.12462]
[1758280012549,0.96666904,4523.4,4523.3,1.12462]
[1758280014360,0.75486904,4523.4,4523.3,1.12462]
[1758280015065,0.96666904,4523.4,4523.3,1.12462]
[1758280017657,0.96666904,4523.4,4523.3,0.91692]
[1758280018459,0.96666904,4523.4,4523.3,1.12322]
[1758280020665,0.24326904,4523.4,4523.3,1.12322]
[1758280021160,0.95536904,4523.4,4523.3,1.12322]
[1758280024864,0.75996904,4523.4,4523.3,1.12322]
[1758280025770,0.95536904,4523.4,4523.3,1.12322]
[1758280026368,1.46944351,4523.4,4523.3,1.12322]
[1758280030669,1.469664,4523.4,4523.3,1.12322]
[1758280035170,1.469664,4523.4,4523.1,0.0221]
[1758280035470,0.7121,4523.2,4523.1,0.41984]
[1758280035659,1.469664,4523.2,4523.1,0.41984]
[1758280035864,1.469664,4523.2,4523.1,0.0221]
[1758280036070,0.3025,4522.2,4521.9,0.39784]
[1758280036271,0.8308,4522.0,4521.9,0.2024]
[1758280036474,0.7121,4521.9,4521.8,1.12536]
[1758280036663,0.94747549,4521.9,4521.8,1.12536]
[1758280036864,0.23537549,4521.9,4521.8,1.12536]
[1758280037065,0.5167,4522.3,4522.1,0.39783]
[1758280037368,0.25630664,4522.2,4522.1,0.80373]
[1758280037563,0.25630664,4522.2,4522.1,1.12533]
[1758280038269,0.3025,4522.8,4522.1,1.12533]
[1758280038270,0.5167,4522.8,4522.7,1.12528]
[1758280038469,0.77286299,4522.8,4522.7,1.12528]
[1758280038669,0.47036299,4522.8,4522.7,1.12528]
[1758280039174,0.25616299,4522.8,4522.7,1.12528]
[1758280039577,0.47036299,4522.8,4522.7,1.12528]
[1758280039775,0.77286299,4522.8,4522.7,1.12528]
[1758280040679,0.47036299,4522.8,4522.7,1.12528]
[1758280040978,0.77286299,4522.8,4522.7,1.12528]
[1758280041670,0.47036299,4522.8,4522.7,1.12528]
[1758280041866,0.25616299,4522.8,4522.7,1.12528]
[1758280042073,0.6547,4523.5,4523.4,1.12522]
[1758280042375,0.91087636,4523.5,4523.4,1.12522]
[1758280043270,0.60837636,4523.5,4523.4,1.12522]
[1758280043871,0.25617636,4523.5,4523.4,1.12522]
[1758280044077,0.7121,4524.1,4524.0,1.12516]
[1758280044273,1.49446207,4524.1,4524.0,1.12516]
[1758280048484,1.49446207,4524.1,4524.0,1.24376]
[1758280048780,0.25620684,4524.1,4524.0,1.24376]
[1758280049371,0.3146,4524.8,4524.7,1.1047]
[1758280049372,0.529,4524.8,4524.7,1.1047]
[1758280049572,0.78515884,4524.8,4524.7,1.1047]
[1758280050179,0.47055868,4524.8,4524.7,1.1047]
[1758280050987,0.78515868,4524.8,4524.7,1.1047]
[1758280053495,0.98025868,4524.8,4524.7,1.1047]
[1758280054079,0.7241,4524.7,4524.6,0.3976]
[1758280054280,1.20225868,4524.7,4524.6,0.3976]
[1758280055379,0.3146,4524.4,4524.1,0.2961]
[1758280055584,0.3146,4524.4,4524.3,0.21]
[1758280055787,0.7241,4524.4,4524.3,0.21]
[1758280056090,0.99099601,4524.4,4524.3,0.21]
[1758280057282,0.99099601,4524.4,4524.3,0.60764]
[1758280058189,0.99099601,4524.4,4524.3,0.90374]
[1758280058792,0.99099601,4524.4,4524.3,0.60764]
[1758280058988,0.99099601,4524.4,4524.3,0.39764]
[1758280059791,0.99099601,4524.4,4524.3,0.60764]
[1758280060089,0.99099601,4524.4,4524.3,0.90374]
[1758280060284,0.26689601,4524.4,4524.3,1.10474]
[1758280060485,0.1187,4525.5,4525.3,0.39754]
[1758280060686,1.7379447,4525.4,4525.3,0.60754]
[1758280060892,1.7379447,4525.4,4525.3,0.90364]
[1758280060893,1.9589447,4525.4,4525.3,0.90364]
[1758280061093,1.7379447,4525.4,4525.3,0.90364]
[1758280061395,1.21292868,4525.4,4525.3,0.90364]
[1758280062093,1.21292868,4525.4,4525.3,0.60754]
[1758280062394,1.21292868,4525.4,4525.3,0.39754]
[1758280063690,1.21292868,4525.4,4525.3,0.60754]
[1758280063898,1.21292868,4525.4,4525.3,0.90364]
[1758280064195,1.21292868,4525.4,4525.3,0.60754]
[1758280064391,1.21292868,4525.4,4525.3,0.90364]
[1758280064592,1.21292868,4525.4,4525.3,1.10464]
[1758280066295,1.74028846,4525.4,4525.3,1.10464]
[1758280072897,1.01618846,4525.4,4525.3,1.10464]
[1758280073095,0.26682868,4525.4,4525.3,1.32562]
[1758280073901,0.26682868,4525.4,4525.3,5.32562]
[1758280074302,0.09837,4526.0,4525.9,1.1046]
[1758280074601,0.36584031,4526.0,4525.9,1.1046]
[1758280076703,0.89430107,4526.0,4525.9,1.1046]
[1758280078404,0.89430107,4526.0,4525.9,5.1046]
[1758280079399,0.36584031,4526.0,4525.9,5.1046]
[1758280080407,0.09837,4526.0,4525.9,5.1046]
[1758280081409,0.60547,4526.0,4525.9,1.1046]
[1758280081912,0.60547,4526.0,4525.9,1.3266]
[1758280082113,0.09837,4526.0,4525.9,1.3266]
[1758280082713,0.09837,4526.0,4525.9,1.1046]
[1758280083010,0.09837,4526.0,4525.9,1.3266]
[1758280083212,0.30837,4526.0,4525.9,1.1046]
[1758280083410,0.09837,4526.0,4525.9,1.3266]
[1758280085119,0.09837,4526.0,4525.9,1.1046]
[1758280085421,0.81567,4526.0,4525.9,1.3266]
[1758280086315,1.08617648,4526.0,4525.9,1.1046]
[1758280087424,0.81567,4526.0,4525.9,1.1046]
[1758280088629,1.20339427,4526.0,4525.9,0.3975]
[1758280090229,1.20339427,4526.0,4525.9,0.8835]
[1758280093931,1.20339427,4526.0,4525.9,0.5915]
[1758280096738,1.20339427,4526.0,4525.9,0.3975]
[1758280100933,1.20339427,4526.0,4525.9,0.8835]
[1758280101640,0.36889427,4526.0,4525.9,1.0952]
[1758280102339,0.87599427,4526.0,4525.9,1.0952]
[1758280103439,1.08619427,4526.0,4525.9,1.0952]
[1758280103636,1.61573906,4526.0,4525.9,1.0952]
[1758280103842,1.73293906,4526.0,4525.9,1.0952]
[1758280104542,1.73293906,4526.0,4525.9,0.3975]
[1758280107145,1.20339427,4526.0,4525.9,0.3975]
[1758280107347,1.73295671,4526.0,4525.9,0.3975]
[1758280108642,1.73295671,4526.0,4525.7,0.68951]
[1758280108846,1.52858671,4525.9,4525.4,0.022]
[1758280109053,0.8505,4525.5,4525.4,0.022]
[1758280109255,1.65058671,4525.5,4525.4,0.022]
[1758280109552,0.8505,4525.0,4524.9,0.39758]
[1758280109850,1.65058671,4525.0,4524.9,0.39758]
[1758280110246,1.12102427,4525.0,4524.9,0.39758]
[1758280110646,1.65004175,4525.0,4524.9,0.39758]
[1758280111250,1.12102427,4525.0,4524.9,0.39758]
[1758280111444,1.12102427,4525.0,4524.9,0.91858]
[1758280112950,1.12102427,4525.0,4524.9,0.60528]
[1758280113151,0.7285,4524.8,4524.7,0.7109]
[1758280113346,0.99902427,4524.8,4524.7,0.3976]
[1758280114545,0.99902427,4524.8,4524.7,0.6053]
[1758280114753,0.99902427,4524.8,4524.7,0.9186]
[1758280118045,0.99902427,4524.8,4524.7,0.6053]
[1758280119651,0.99902427,4524.8,4524.7,0.9186]
[1758280119856,0.99902427,4524.8,4524.7,0.6053]
[1758280120455,0.99902427,4524.8,4524.7,0.9186]
[1758280122458,0.99902427,4524.8,4524.7,0.3976]
[1758280122860,0.99902427,4524.8,4524.5,0.0221]
[1758280123160,0.7285,4524.6,4524.5,0.0221]
[1758280123357,1.52706959,4524.6,4524.5,0.0221]
[1758280123561,1.52706959,4524.6,4524.3,0.39764]
[1758280123853,0.122,4525.0,4524.3,0.39764]
[1758280123854,0.7285,4524.4,4524.3,0.39764]
[1758280124158,1.52706959,4524.4,4524.3,0.39764]
[1758280124751,0.3207,4524.3,4524.2,0.39764]
[1758280124956,0.7285,4523.9,4523.8,0.91868]
[1758280125356,0.7285,4523.9,4523.8,1.12268]
[1758280134067,0.7285,4523.9,4523.8,0.60538]
[1758280134570,0.7285,4523.9,4523.8,0.91868]
[1758280134763,0.7285,4523.9,4523.8,1.12268]
[1758280136075,0.8505,4524.5,4524.4,0.60533]
[1758280136370,1.63647173,4524.5,4524.4,0.2077]
[1758280136670,1.85749173,4524.5,4524.3,0.39764]
[1758280136971,1.49447173,4524.4,4524.3,0.39764]
[1758280140168,1.49447173,4524.4,4524.3,0.89394]
[1758280142084,1.49447173,4524.4,4524.3,1.08984]
[1758280142668,1.49447173,4524.4,4524.3,0.6922]
[1758280143168,1.49447173,4524.4,4524.3,1.08984]
[1758280145278,1.49447173,4524.4,4524.3,0.6922]
[1758280146579,1.49447173,4524.4,4524.3,0.4963]
[1758280147081,1.49447173,4524.4,4524.3,0.2028]
[1758280147282,1.19617173,4524.4,4524.1,0.39765]
[1758280147480,0.1932,4523.7,4523.6,0.41979]
[1758280147675,1.49878735,4523.7,4523.6,0.0221]
[1758280147981,1.49878735,4523.7,4523.6,0.3977]
[1758280149180,1.49878735,4523.7,4523.0,0.123]
[1758280149376,0.8295,4523.5,4523.4,0.89401]
[1758280149576,1.61668735,4523.5,4523.4,1.08991]
[1758280151076,1.61668735,4523.5,4523.4,0.39771]
[1758280151270,1.61668735,4523.5,4522.7,0.69127]
[1758280151471,0.7116,4522.8,4522.7,0.89407]
[1758280151676,1.49871543,4522.8,4522.4,0.6913]
[1758280151876,0.8295,4522.5,4522.4,0.8941]
[1758280152182,1.08752967,4522.5,4522.4,0.2028]
[1758280152680,1.08752967,4522.5,4522.2,0.39782]
[1758280152877,0.7116,4522.3,4522.2,0.89412]
[1758280153182,0.96962967,4522.3,4522.2,0.4963]
[1758280154187,0.96962967,4522.3,4522.2,0.6922]
[1758280155585,0.77282967,4522.3,4522.2,0.6922]
[1758280156186,0.45122967,4522.3,4522.2,0.6922]
[1758280156682,0.25802967,4522.3,4522.2,0.6922]
[1758280156993,0.222,4523.4,4523.0,0.39775]
[1758280157281,0.1932,4523.1,4523.0,1.08995]
[1758280157485,0.7116,4523.1,4523.0,1.08995]
[1758280157681,0.76639844,4523.1,4523.0,1.20725]
[1758280157880,0.3216,4523.4,4523.1,0.2935]
[1758280158077,0.5148,4523.4,4523.3,0.6922]
[1758280158283,0.76638632,4523.4,4523.3,1.08992]
[1758280158984,0.44478632,4523.4,4523.3,1.08992]
[1758280159983,0.96318632,4523.4,4523.3,1.08992]
[1758280161786,0.96318632,4523.4,4523.3,0.39772]
[1758280162095,0.96318632,4523.4,4523.3,0.89402]
[1758280163993,0.96318632,4523.4,4523.3,0.60052]
[1758280164489,0.96318632,4523.4,4523.3,0.89402]
[1758280164792,0.96318632,4523.4,4523.3,1.08992]
[1758280166494,1.49073666,4523.4,4523.3,1.08992]
[1758280166697,0.77913666,4523.4,4523.3,1.08992]
[1758280166893,0.25158632,4523.4,4523.3,1.08992]
[1758280168289,36.039,4523.9,4523.5,0.99426]
[1758280168495,0.3023,4524.3,4523.9,0.99419]
[1758280168684,0.095,4524.5,4524.4,0.80742]
[1758280168996,1.37018158,4524.5,4524.4,1.09812]
[1758280169290,1.58168158,4524.5,4524.4,0.7005]
[1758280169496,1.70088158,4524.5,4524.0,0.1257]
[1758280169793,0.8263,4524.0,4523.9,0.39767]
[1758280169992,0.8263,4524.0,4523.9,0.88417]
[1758280171897,0.8263,4524.0,4523.9,1.09817]
[1758280172093,0.7071,4524.0,4523.9,1.09817]
[1758280175890,1.6029173,4524.0,4523.6,0.2907]
[1758280176092,0.7071,4523.7,4523.6,0.8842]
[1758280176292,0.95599067,4523.7,4523.6,1.0982]
[1758280176897,0.7071,4524.2,4524.1,0.88415]
[1758280177090,1.48376761,4524.2,4524.1,0.88415]
[1758280177291,1.48376761,4524.2,4524.1,1.09815]
[1758280177698,1.48376761,4524.2,4523.6,0.2907]
[1758280177900,1.48376761,4524.1,4524.0,0.39766]
[1758280178390,0.1192,4524.0,4523.4,0.0221]
[1758280178592,0.8263,4523.5,4523.4,1.12031]
[1758280179188,1.07521239,4523.5,4523.4,0.7226]
[1758280179597,1.07521239,4523.5,4523.4,0.7005]
[1758280180297,1.07521239,4523.5,4523.4,1.09821]
[1758280186404,1.60362572,4523.5,4523.4,1.09821]
[1758280186894,1.48442463,4523.5,4523.4,1.09821]
[1758280187101,0.24891239,4523.5,4523.4,1.09821]
[1758280188605,0.55121239,4523.5,4523.4,1.09821]
[1758280189105,0.74451239,4523.5,4523.4,1.09821]
[1758280190001,0.44221239,4523.5,4523.4,1.09821]
[1758280191105,0.24891239,4523.5,4523.4,1.09821]
[1758280191901,0.2883,4524.5,4524.4,0.7005]
[1758280192100,1.33074337,4524.5,4524.4,0.7005]
[1758280192603,1.44994337,4524.5,4524.4,0.4865]
[1758280193406,1.33074337,4524.5,4524.4,0.7005]
[1758280194100,1.33074337,4524.5,4524.4,1.09813]
[1758280195607,0.7071,4524.1,4524.0,1.09816]
[1758280195808,1.23574337,4524.1,4524.0,1.09816]
[1758280196201,1.23574337,4524.1,4524.0,1.22386]
[1758280198003,1.02424337,4524.1,4524.0,1.22386]
[1758280198203,0.52864337,4524.1,4524.0,1.22386]
[1758280198506,1.01783277,4524.3,4524.2,1.09735]
[1758280198704,0.1187,4524.0,4523.8,0.39768]
[1758280198907,0.7031,4523.8,4523.7,0.39769]
[1758280199102,1.23182587,4523.8,4523.5,0.295]
[1758280199302,0.4113,4523.8,4523.6,0.3977]
[1758280199504,0.7031,4523.7,4523.6,0.8866]
[1758280200808,0.2137,4524.5,4524.0,1.21936]
[1758280200809,0.1973,4524.1,4524.0,1.21936]
[1758280201108,0.4891,4524.3,4524.2,0.80234]
[1758280201308,0.7031,4524.3,4524.2,0.80234]
[1758280201506,1.23191439,4524.3,4524.2,0.80234]
[1758280201706,1.23191439,4524.3,4524.2,0.1939]
[1758280202009,1.23191439,4524.3,4524.2,0.59154]
[1758280202308,1.23191439,4524.3,4524.2,0.88654]
[1758280202810,0.52881439,4524.3,4524.2,1.09734]
[1758280203011,0.7031,4524.6,4524.5,0.6997]
[1758280203208,1.23195553,4524.6,4524.5,0.4889]
[1758280203408,1.23195553,4524.6,4524.1,0.295]
[1758280203607,0.7031,4524.2,4524.1,1.09735]
[1758280203911,0.96961028,4524.2,4524.1,1.09735]
[1758280204513,0.77231028,4524.2,4524.1,1.09735]
[1758280204812,1.47541028,4524.2,4524.1,1.09735]
[1758280205115,1.47541028,4524.2,4524.1,0.1939]
[1758280205414,0.7031,4523.9,4523.8,0.88658]
[1758280205614,1.47541028,4523.9,4523.8,0.88658]
[1758280206301,0.94655475,4523.9,4523.8,0.88658]
[1758280207017,0.94655475,4523.9,4523.5,0.6927]
[1758280207220,0.7031,4523.7,4523.6,0.5916]
[1758280207510,1.47535377,4523.7,4523.6,0.5916]
[1758280209210,1.47535377,4523.7,4523.4,0.3171]
[1758280209211,0.7031,4523.6,4523.5,0.4889]
[1758280209413,1.47535377,4523.6,4523.5,0.6997]
[1758280209709,0.1973,4522.1,4522.0,0.3159]
[1758280209907,0.4891,4522.1,4522.0,0.92454]
[1758280210309,0.4891,4522.1,4522.0,1.21954]
[1758280212215,0.7031,4522.1,4522.0,1.21954]
[1758280212419,0.7031,4522.1,4522.0,1.09754]
[1758280212612,1.24389538,4522.1,4522.0,1.09754]
[1758280213321,0.4891,4522.1,4522.0,1.21954]
[1758280213614,0.1973,4522.3,4522.2,0.80251]
[1758280213806,0.4891,4522.3,4522.2,0.80251]
[1758280214010,0.4891,4522.3,4522.2,1.09751]
[1758280214011,1.03340897,4522.3,4522.2,1.09751]
[1758280214215,1.24740897,4522.3,4522.2,0.6997]
[1758280215017,1.24740897,4522.3,4521.9,0.39784]
[1758280215214,0.7031,4521.9,4521.8,0.88675]
[1758280215412,0.7031,4521.9,4521.8,1.09755]
[1758280216910,0.7031,4521.9,4521.8,0.6997]
[1758280218019,0.7031,4522.3,4522.2,0.88672]
[1758280219122,0.7031,4522.3,4522.2,1.09752]
[1758280219619,0.7031,4522.3,4522.2,0.1939]
[1758280220023,0.7031,4522.3,4522.2,0.6997]
[1758280220223,0.7031,4522.3,4522.2,0.59172]
[1758280221024,0.7031,4522.3,4522.2,0.88672]
[1758280222723,0.7031,4522.3,4522.2,1.09752]
[1758280223224,0.2918,4522.6,4522.5,0.39779]
[1758280223424,0.4891,4522.6,4522.5,1.09749]
[1758280224327,0.7031,4522.6,4522.5,1.09749]
[1758280225128,0.4891,4522.6,4522.5,1.21949]
[1758280225723,0.2918,4523.4,4523.3,0.1939]
[1758280225930,0.4113,4523.9,4523.8,0.88658]
[1758280226124,0.64544654,4523.9,4523.8,1.09738]
[1758280226324,1.18859096,4523.9,4523.8,1.09738]
[1758280226524,1.48039096,4523.9,4523.8,1.09738]
[1758280226926,1.48039096,4523.9,4523.8,0.6997]
[1758280228533,1.48039096,4523.9,4523.8,0.4889]
[1758280229037,1.48039096,4523.9,4523.5,0.3152]
[1758280229236,0.2022,4522.8,4522.7,0.2084]
[1758280229534,0.8541,4522.5,4522.4,0.603]
[1758280229736,0.8541,4522.5,4522.4,0.2052]
[1758280230224,0.8541,4522.5,4522.4,0.5204]
[1758280230426,0.8541,4522.5,4522.4,0.2052]
[1758280230632,0.727,4522.5,4522.4,0.7288]
[1758280231432,0.2065,4522.5,4522.4,0.7288]
[1758280232527,0.727,4522.5,4522.4,0.7288]
[1758280235825,0.8541,4522.5,4522.4,0.2052]
[1758280236226,0.8541,4522.5,4522.1,0.3152]
[1758280236227,0.8541,4522.5,4522.1,0.71303]
[1758280236431,0.4087,4522.3,4522.2,0.91822]
[1758280236631,1.27070961,4522.3,4522.2,0.5204]
[1758280237132,1.50745705,4522.3,4522.2,0.5204]
[1758280237835,1.50745705,4522.3,4521.9,0.71304]
[1758280238031,0.727,4522.0,4521.9,0.91824]
[1758280238336,0.96374744,4522.0,4521.9,1.12664]
[1758280239737,0.44324744,4522.0,4521.9,1.12664]
[1758280239929,0.76154744,4522.0,4521.9,1.12664]
[1758280241536,0.23674744,4522.0,4521.9,1.12664]
[1758280241737,0.76176227,4522.3,4522.2,0.71302]
[1758280241939,1.30081469,4522.3,4522.2,1.12662]
[1758280244040,1.50301469,4522.3,4522.2,0.7288]
[1758280244636,1.50301469,4522.3,4522.2,1.12662]
[1758280245135,1.50301469,4522.3,4522.2,0.7288]
[1758280245935,1.50301469,4522.3,4522.2,1.12662]
[1758280246131,1.50301469,4522.3,4522.2,0.7288]
[1758280246642,1.50301469,4522.3,4521.8,0.39785]
[1758280246837,0.727,4521.9,4521.8,1.12665]
[1758280247042,0.96396245,4521.9,4521.8,1.12665]
[1758280247442,0.727,4521.9,4521.8,1.12665]
[1758280251043,0.727,4521.9,4521.8,1.12666]
[1758280252444,0.2065,4521.9,4521.8,1.12666]
[1758280253243,0.727,4521.9,4521.8,0.7288]
[1758280253444,0.727,4521.9,4521.8,1.12666]
[1758280258238,1.50356109,4521.9,4521.8,1.12666]
[1758280260239,1.50356109,4521.9,4521.2,1.01686]
[1758280260240,0.1261,4521.5,4521.2,0.71181]
[1758280260444,0.6998,4521.3,4521.2,1.11531]
[1758280260643,1.47636109,4521.3,4521.2,1.09321]
[1758280260845,1.47636109,4521.3,4521.2,0.6953]
[1758280261040,0.2106,4521.1,4521.0,0.2918]
[1758280261350,1.47636109,4521.1,4521.0,0.502]
[1758280261744,1.47636109,4521.1,4521.0,0.89993]
[1758280262238,1.47636109,4521.1,4521.0,1.09323]
[1758280262647,0.77656109,4521.1,4521.0,1.20923]
[1758280263151,0.53928514,4521.1,4521.0,1.20923]
[1758280263453,0.4892,4521.4,4521.3,1.0932]
[1758280263646,1.26373675,4521.4,4521.3,1.0932]
[1758280264350,1.47433675,4521.4,4521.3,1.0932]
[1758280268357,1.26373675,4521.4,4521.3,1.0932]
[1758280268750,0.23560739,4521.4,4521.3,1.0932]
[1758280268953,0.64350739,4521.4,4521.3,1.0932]
[1758280269152,0.23560739,4521.4,4521.3,1.0932]
[1758280270353,0.93540739,4521.4,4521.3,0.6953]
[1758280270653,1.47403693,4521.4,4521.3,0.6081]
[1758280270851,1.18213693,4521.4,4521.1,0.39791]
[1758280271155,0.6998,4521.3,4521.2,0.60811]
[1758280271456,0.6998,4521.3,4521.2,0.89991]
[1758280272956,0.534,4521.0,4520.9,0.5241]
[1758280273260,0.8259,4521.0,4520.9,0.5241]
[1758280273554,0.8259,4521.0,4520.9,0.89993]
[1758280275957,0.6998,4521.0,4520.9,1.09323]
[1758280276559,0.1973,4521.3,4520.9,0.99483]
[1758280276858,0.4079,4521.3,4521.2,1.09321]
[1758280277166,0.93523418,4521.3,4521.0,0.39792]
[1758280277366,0.4892,4520.7,4520.6,1.09326]
[1758280277663,0.1973,4520.7,4520.6,1.09326]
[1758280278061,0.1973,4521.0,4520.7,0.99489]
[1758280278253,0.1973,4521.0,4520.9,1.09323]
[1758280278965,0.2919,4521.9,4521.2,0.3979]
[1758280279164,0.4892,4521.3,4521.2,0.8014]
[1758280279361,0.7246397,4521.3,4521.2,0.8014]
[1758280279560,1.47451525,4521.3,4521.2,0.8014]
[1758280279759,1.47451525,4521.3,4521.2,0.2102]
[1758280279962,1.47451525,4521.3,4521.2,0.60811]
[1758280280565,1.47451525,4521.3,4521.2,0.89991]
[1758280281160,1.26391525,4521.3,4521.2,1.09321]